[Event "4NCL 2022-2023"]
[Site "Daventry"]
[Date "2023.03.19"]
[Round "8.19"]
[White "Kelmendi, Bajrush"]
[Black "Lupulescu, Constantin"]
[Result "1/2-1/2"]
[ECO "B20"]
[WhiteElo "1942"]
[BlackElo "2592"]
[Annotator "TA"]
[PlyCount "96"]
[EventDate "2022.10.20"]
[EventType "team-tourn"]
[EventCountry "ENG"]
[SourceTitle "playchess.com"]
[Source "ChessBase"]
[SourceQuality "1"]
[TimeControl "40/6000+30:2400+30"]

{[%evp 9,96,-10,-13,-74,-68,-88,-70,-78,-78,-56,-63,-64,-75,-85,-76,-98,-90,-101,-90,-118,-125,-120,-79,-95,-87,-97,-78,-75,-66,-75,-91,-112,-113,-106,-89,-95,-94,-117,-129,-269,-224,-227,-224,-225,-223,-210,-199,-200,-213,-292,-276,-427,-428,-492,-492,-504,-490,-598,-580,-551,-516,-1214,-1185,-1309,-1264,-1498,-1340,-1473,-1477,-1411,-1367,-1256,-1157,-10434,-10046,-5556,-2816,-5916,-5195,-12835,-10877,-29973,-12843,-29986,-29985,-29990,-29991,-29991,-29992]} 1. e4 {[%emt 1:41:00]} c5 {[%emt 0:11:19]} 2. c4 {[%emt 0:00:00]} Nc6 {[%emt 0:00:08][%cal Bb8c6,Bc6d4,Bd4e2][%mdl 32]} 3. Nc3 {[%emt 0:00:00]} g6 {[%emt 0:00:15]} 4. d3 {[%emt 0:00:00]} Bg7 {[%emt 0:00:07]} 5. Be2 {[%emt 0:00:00]} d6 {[%emt 0:00:14]} 6. g4 {[%emt 0:00:00] B20: Sicilian: Unusual White 2nd moves.} (6. Bg5 $11 {keeps the balance.}) 6... Nd4 $17 {[%emt 0:00:11]} 7. h4 {[%emt 0:00:00] [#]} Nxe2 $146 {[%emt 0:02:26]} ({Predecessor:} 7... h5 8. g5 e6 9. f4 Ne7 10. Nf3 Nec6 11. Be3 b6 12. Qd2 Rb8 13. a4 a6 {0-1 Kelmendi,B (1951)-Cheparinov,I (2667) EU-Cup Online Gr-D rapid 2021 (8.4)}) 8. Qxe2 {[%emt 0:00:00] Black is slightly better.} Nf6 {[%emt 0:00:03][%cal Bg8f6,Bf6d7,Bd7e5][%mdl 32]} 9. f3 {[%emt 0:00:00]} h5 {[%emt 0:00:10][%cal Rh5g4]} 10. g5 {[%emt 0:00:00]} Nd7 {[%emt 0:00:05]} 11. Nh3 {[%emt 0:00:00]} Ne5 {[%emt 0:01:33]} 12. Nf2 {[%emt 0:00:00]} Rb8 {[%emt 0:03:12]} 13. a4 {[%emt 0:00:00]} a6 {[%emt 0:02:46]} 14. O-O {[%emt 0:00:00]} Nc6 {[%emt 0:05:02]} 15. Be3 {[%emt 0:00:00]} Nd4 {[%emt 0:04:56]} 16. Bxd4 {[%emt 0:00:00]} Bxd4 {[%emt 0:02:13]} 17. Kg2 {[%emt 0:00:00]} Bd7 {[%emt 0:03:12]} 18. Qd2 {[%emt 0:00:00]} b5 {[%emt 0:03:51]} 19. cxb5 {[%emt 0:00:00]} axb5 {[%emt 0:00:05]} 20. a5 {[%emt 0:00:00]} O-O {[%emt 0:05:17]} 21. Ne2 {[%emt 0:00:00]} Bg7 {[%emt 0:00:16] This pair of bishops is nice.} 22. d4 {[%emt 0:00:00]} b4 {[%emt 0:09:08]} 23. Rfc1 {[%emt 0:00:00]} Bb5 {[%emt 0:01:09]} 24. dxc5 {[%emt 0:00:00] This move loses the game for White.} (24. e5 $17 {keeps fighting.}) 24... dxc5 $19 {[%emt 0:00:28]} 25. Rd1 {[%emt 0:00:00]} Qxd2 {[%emt 0:07:18]} 26. Rxd2 {[%emt 0:00:00]} Rfd8 {[%emt 0:00:07]} 27. Rad1 {[%emt 0:00:00]} Rxd2 {[%emt 0:00:15]} 28. Rxd2 {[%emt 0:00:00]} Ra8 {[%emt 0:00:17]} 29. Nc1 {[%emt 0:00:00]} Rxa5 {[%emt 0:06:16]} 30. Nb3 {[%emt 0:00:00]} (30. Rd8+ $142 Kh7 31. Nfd3) 30... Ra2 {[%emt 0:00:27]} 31. Nxc5 {[%emt 0:00:00]} Rxb2 {[%emt 0:00:08]} (31... Bxb2 $2 32. Nfd3 $18) 32. Rd5 {[%emt 0:00:00]} Bc3 {[%emt 0:02:37] [#] White must now prevent ...Be1.} 33. Rd1 {[%emt 0:00:00] Dodges Be1} Kg7 {[%emt 0:01:55]} 34. Kg3 {[%emt 0:00:00]} Be2 {[%emt 0:03:14] Inhibits Nfd3.} 35. Rd7 {[%emt 0:00:00]} (35. Rc1 $142) 35... Be1 {[%emt 0:00:25]} 36. Rxe7 {[%emt 0:00:00]} Bc4 {[%emt 0:00:23]} 37. Nd7 {[%emt 0:00:00]} Rxf2 {[%emt 0:03:56]} 38. Nf6 {[%emt 0:00:00]} Rd2+ {[%emt 0:00:10]} 39. Kf4 {[%emt 0:00:00]} Rd8 {[%emt 0:00:06]} 40. Rb7 {[%emt 0:00:00]} b3 {[%emt 0:00:21][%cal Bb4b3,Bb3b2][%mdl 32]} 41. e5 {[%emt 0:02:19]} Bd2+ {[%emt 0:41:30]} 42. Kg3 {[%emt 0:00:35]} Bc3 {[%emt 0:00:20]} 43. f4 {[%emt 0:00:43]} b2 {[%emt 0:00:05]} 44. Kf3 {[%emt 0:00:30]} Ba2 {[%emt 0:00:44]} 45. e6 {[%emt 0:00:55]} Bxe6 {[%emt 0:00:06] [#] ( -> ...Bf5)} ({Don't play} 45... b1=R 46. Rxf7+ Kh8 47. Rh7#) 46. f5 {[%emt 0:00:41]} Bxf5 {[%emt 0:00:22] Black mates.} 47. Ne4 {[%emt 0:00:10]} Rd3+ {[%emt 0:00:30]} 48. Kf4 {[%emt 0:01:04]} Rd4 {[%emt 0:00:13][%mdl 32768] Weighted Error Value: White=0.83/Black=0.09 (flawless) . An unexpected result.} 1/2-1/2

[Event "4NCL 2022-2023"]
[Site "Daventry"]
[Date "2023.03.19"]
[Round "8.20"]
[White "Turner, Matthew J"]
[Black "Healey, Michael W"]
[Result "1-0"]
[ECO "E33"]
[WhiteElo "2441"]
[BlackElo "2124"]
[Annotator "TA"]
[PlyCount "55"]
[EventDate "2022.10.20"]
[EventType "team-tourn"]
[EventCountry "ENG"]
[SourceTitle "playchess.com"]
[Source "ChessBase"]
[SourceQuality "1"]
[TimeControl "40/6000+30:2400+30"]

{[%evp 9,55,35,44,45,36,39,30,34,51,48,74,67,83,56,119,29,39,29,36,35,75,68,115,107,165,153,205,164,174,161,283,276,334,328,338,338,480,487,470,460,445,442,431,391,489,485,772,723]} 1. d4 {[%emt 0:00:05]} Nf6 {[%emt 0:00:10]} 2. c4 {[%emt 0:00:20]} Nc6 {[%emt 0:00:05]} 3. Nf3 {[%emt 0:00:57]} e6 {[%emt 0:00:09]} 4. Nc3 {[%emt 0:01:01]} Bb4 {[%emt 0:00:43]} 5. Qc2 {[%emt 0:01:19]} Qe7 {[%emt 0:01:15]} 6. Bd2 {[%emt 0:02:59] E33: Nimzo-Indian: Classical: 4...Nc6.} O-O {[%emt 0:01:01]} 7. a3 {[%emt 0:01:40]} Bxc3 {[%emt 0:00:07]} 8. Bxc3 {[%emt 0:00:05] White has an edge.} a5 {[%emt 0:01:39]} 9. e4 {[%emt 0:02:23][%cal Be2e4,Be4e5][%mdl 32]} d6 {[%emt 0:14:25]} 10. e5 {[%emt 0:05:18]} Nd7 {[%emt 0:08:42]} 11. Bd3 {[%emt 0:01:56]} h6 {[%emt 0:02:33]} (11... dxe5 $14 12. Nxe5 (12. Bxh7+ Kh8 $14) 12... Ncxe5 13. dxe5 (13. Bxh7+ Kh8 $15) 13... Qh4) 12. Qe2 {[%emt 0:03:36] White is more active.} (12. O-O $16) 12... dxe5 $11 {[%emt 0:09:10]} 13. dxe5 {[%emt 0:00:13]} Nc5 {[%emt 0:00:05]} 14. Bc2 {[%emt 0:00:06]} a4 {[%emt 0:01:58] [#]} 15. g4 $146 {[%emt 0:09:26]} ({Predecessor:} 15. h4 b6 16. Rh3 Rd8 17. Rg3 Ba6 18. Qe3 Kf8 19. Qf4 Qd7 20. Qg4 g6 21. Bxg6 {1-0 Edouard,R (2627)-Tregubov,P (2571) Calvi Balagne rapid KO 12th 2015 (10.4)}) 15... Bd7 {[%emt 0:04:28]} (15... b6 $14) 16. Rg1 $40 {[%emt 0:02:52][%mdl 128] White goes for the king.} Be8 {[%emt 0:13:18] [#]} (16... Rfd8 $16) 17. O-O-O $1 $18 {[%emt 0:02:03]} Rd8 {[%emt 0:02:14]} (17... Na5 $16 {keeps fighting.} 18. Kb1 Nab3) 18. h4 {[%emt 0:01:06][%cal Bh2h4,Bh4h5][%mdl 32]} Rxd1+ {[%emt 0:01:04]} 19. Rxd1 {[%emt 0:00:19]} ({Resist} 19. Qxd1 $6 Nb8 $14) 19... g6 {[%emt 0:06:23]} (19... Nb8 {was necessary.} 20. g5 h5) 20. h5 {[%emt 0:02:28]} Kg7 {[%emt 0:02:21] [#]} 21. g5 $1 {[%emt 0:04:07][%cal Bg4g5,Bg5h6][%mdl 544]} Rh8 {[%emt 0:00:29]} (21... hxg5 22. h6+) 22. Bd2 {[%emt 0:01:40]} Nb3+ {[%emt 0:01:27]} (22... Kg8 $142 23. gxh6 Qf8) 23. Bxb3 {[%emt 0:00:06]} axb3 {[%emt 0:00:03]} 24. gxh6+ {[%emt 0:00:27]} Kf8 {[%emt 0:00:21]} 25. hxg6 {[%emt 0:02:41]} fxg6 {[%emt 0:00:44]} 26. Qe3 {[%emt 0:02:36]} Kg8 {[%emt 0:01:56]} 27. Qxb3 {[%emt 0:01:45]} b5 {[%emt 0:02:17]} (27... b6 $142 28. Ng5 Nd4) 28. cxb5 {[%emt 0:01:35] Weighted Error Value: White=0.13 (very precise) /Black=0.39} 1-0

[Event "4NCL 2022-2023"]
[Site "Daventry"]
[Date "2023.03.19"]
[Round "8.21"]
[White "Franco, Gaston"]
[Black "Cyborowski, Lukasz"]
[Result "0-1"]
[ECO "B33"]
[WhiteElo "2028"]
[BlackElo "2498"]
[Annotator "TA"]
[PlyCount "82"]
[EventDate "2022.10.20"]
[EventType "team-tourn"]
[EventCountry "ENG"]
[SourceTitle "playchess.com"]
[Source "ChessBase"]
[SourceQuality "1"]
[TimeControl "40/6000+30:2400+30"]

{[%evp 15,82,40,45,11,37,22,18,15,39,8,33,0,1,0,0,0,0,0,0,-4,-11,-48,-34,-39,-17,-20,-17,-25,-18,-13,-9,-9,-25,-24,-16,-21,-9,-52,-9,-142,-133,-211,-228,-210,-214,-395,-389,-355,-242,-446,-446,-446,-446,-439,-435,-454,-447,-629,-617,-6554,-6087,-29967,-29968,-29966,-29963,-29964,-10635,-4627,-4614]} 1. e4 {[%emt 0:00:03]} c5 {[%emt 0:00:41]} 2. Nf3 {[%emt 0:00:07]} Nc6 {[%emt 0:01:26]} 3. d4 {[%emt 0:00:07]} cxd4 {[%emt 0:00:06]} 4. Nxd4 {[%emt 0:00:03]} Qb6 {[%emt 0:00:54]} 5. Nb3 {[%emt 0:01:21]} Nf6 {[%emt 0:00:49]} 6. Nc3 {[%emt 0:00:18]} e6 {[%emt 0:00:54]} 7. Bd3 {[%emt 0:01:57]} a6 {[%emt 0:03:08]} 8. O-O {[%emt 0:01:24]} Qc7 {[%emt 0:02:06]} 9. Bg5 {[%emt 0:06:45] [#] B33: Sicilian: Pelikan and Sveshnikov Variations.} h6 $146 {[%emt 0:20:32][%cal Bh7h6,Bh6h5,Bh5h4][%mdl 32]} ({Predecessor:} 9... Be7 10. f4 d6 11. Qe2 b5 12. a4 b4 13. Nd1 O-O 14. a5 Qa7+ 15. Kh1 Nd4 16. Nxd4 Qxd4 {1-0 Dukaczewski,P (2319)-Wassin,S (2295) IBCA Wch blind 12th 2010 (4.2)}) 10. Bd2 {[%emt 0:02:30]} b5 {[%emt 0:04:57]} 11. Qe2 {[%emt 0:08:16] The position is equal.} b4 {[%emt 0:07:33]} 12. Na4 {[%emt 0:04:35]} Ne5 {[%emt 0:01:36]} 13. Bf4 {[%emt 0:18:54]} Bd6 {[%emt 0:05:43]} 14. Bg3 {[%emt 0:16:03]} h5 {[%emt 0:20:20]} 15. h3 {[%emt 0:11:15]} h4 {[%emt 0:03:23]} 16. Bxe5 {[%emt 0:01:38]} Bxe5 {[%emt 0:00:05]} 17. Qe3 {[%emt 0:00:08] [#] f4 would be deadly.} Bf4 {[%emt 0:05:28]} 18. Qc5 {[%emt 0:05:45]} (18. Qf3 $5 {[%cal Re4e5]}) 18... Qxc5 {[%emt 0:03:27]} 19. Nbxc5 {[%emt 0:01:16]} Bc7 {[%emt 0:00:14] Against Nb6} (19... d6 $5 {[%cal Rd6c5]} 20. Nb3 Rb8 $11) 20. a3 {[%emt 0:04:03]} a5 {[%emt 0:00:27]} 21. axb4 {[%emt 0:03:44]} axb4 {[%emt 0:00:05]} 22. c3 {[%emt 0:00:21]} Rb8 {[%emt 0:05:13]} 23. cxb4 $1 {[%emt 0:06:05]} Rxb4 {[%emt 0:00:31]} 24. Rfc1 {[%emt 0:00:06][%cal Oc5e6]} Bf4 {[%emt 0:01:21]} 25. Rc4 {[%emt 0:03:30]} Rb8 {[%emt 0:02:19] Hoping for ...d6.} 26. Nc3 {[%emt 0:05:26]} O-O {[%emt 0:01:33]} (26... d6 $5 {[%cal Rd6c5]} 27. Na6 Bxa6 28. Rxa6 Be5 $11) 27. b4 {[%emt 0:00:27] White is on the road to losing.} (27. Be2 $11) 27... Be5 $36 {[%emt 0:01:18][%mdl 2048] Strongly threatening ...d5. Keeping White busy.} 28. Rb1 {[%emt 0:00:14] [#]} (28. Rc1 $17 {is a better defense.}) 28... d5 $1 $19 {[%emt 0:01:51]} 29. exd5 {[%emt 0:00:09]} exd5 {[%emt 0:00:04]} 30. f4 $2 {[%emt 0:06:23]} (30. Nxd5 {was the only chance.} Nxd5 31. Rxh4) 30... dxc4 {[%emt 0:02:15]} 31. fxe5 {[%emt 0:00:05]} Nd7 {[%emt 0:00:56]} 32. Bxc4 {[%emt 0:00:03]} (32. Nxd7 Bxd7 33. Be4) 32... Nxc5 {[%emt 0:03:09]} (32... Nxe5 $2 {perishes.} 33. Ba2 $19) 33. bxc5 {[%emt 0:00:05]} Rxb1+ {[%emt 0:00:03]} 34. Nxb1 {[%emt 0:00:03][%mdl 4096] Endgame KRB-KBN} Re8 {[%emt 0:00:09]} 35. Nc3 {[%emt 0:03:46]} Rxe5 {[%emt 0:00:11]} 36. Nd5 {[%emt 0:01:00]} (36. Bd5 $142) 36... Be6 {[%emt 0:01:07]} 37. Ne7+ {[%emt 0:00:26]} Kf8 {[%emt 0:00:11]} 38. Bxe6 {[%emt 0:00:07]} Kxe7 {[%emt 0:00:15]} 39. Bg4 {[%emt 0:00:09]} Rxc5 {[%emt 0:00:06]} 40. Bf3 {[%emt 0:00:16]} Kf6 {[%emt 0:00:08]} (40... Ke6 $142 41. Kf2 Ke5 42. Bh5 Rc2+ 43. Kg1 g6 44. Bf3 f5 45. Kh2 Kf4 46. Kg1 Kg3 47. Kf1 Rf2+ 48. Kg1 Rxf3 49. gxf3 Kxf3 50. Kf1 f4 51. Ke1 Ke3 52. Kf1 f3 53. Kg1 g5 54. Kf1 f2 55. Kg2 Ke2 56. Kh1 f1=Q+ 57. Kh2 g4 58. hxg4 Kf3 59. g5 Qg2#) 41. Kf2 {[%emt 0:00:00]} Ke5 {[%emt 0:00:00] Weighted Error Value: White=0.61/Black=0.18 (very precise)} 0-1

[Event "4NCL 2022-2023"]
[Site "Daventry"]
[Date "2023.03.19"]
[Round "8.22"]
[White "Csonka, Balazs"]
[Black "Pedersen, Carsten"]
[Result "1-0"]
[ECO "C02"]
[WhiteElo "2494"]
[BlackElo "2088"]
[Annotator "TA"]
[PlyCount "65"]
[EventDate "2022.10.20"]
[EventType "team-tourn"]
[EventCountry "ENG"]
[SourceTitle "playchess.com"]
[Source "ChessBase"]
[SourceQuality "1"]
[TimeControl "40/6000+30:2400+30"]

{[%evp 12,65,28,10,18,18,5,-3,20,-6,40,33,41,43,35,30,30,35,63,41,66,46,41,43,52,40,41,45,58,8,13,9,36,0,39,0,0,0,0,0,0,-21,0,0,0,0,0,0,0,0,416,237,198,199,2465,2297]} 1. e4 {[%emt 0:00:12]} e6 {[%emt 0:00:05]} 2. d4 {[%emt 0:00:14]} d5 {[%emt 0:00:07]} 3. e5 {[%emt 0:00:16]} c5 {[%emt 0:00:09]} 4. c3 {[%emt 0:00:07]} Nc6 {[%emt 0:00:07]} 5. Nf3 {[%emt 0:00:05]} Qb6 {[%emt 0:01:15]} 6. a3 {[%emt 0:01:59]} Nh6 {[%emt 0:00:47]} 7. Bd3 $1 {[%emt 0:00:29][%mdl 4] is now more promising than 7.b4.} cxd4 {[%emt 0:06:02] C02: French: Advance Variation.} 8. O-O {[%emt 0:00:32]} Bd7 {[%emt 0:10:52]} 9. b4 {[%emt 0:00:49]} Rc8 {[%emt 0:07:49] The position is equal.} 10. Bb2 {[%emt 0:00:31][%cal Rc3d4] [#]} a6 $146 {[%emt 0:19:10]} (10... dxc3 $11 11. Nxc3 Nd4) ({Predecessor:} 10... dxc3 11. Nxc3 Be7 12. Nb5 O-O 13. Nbd4 a5 14. b5 Nxd4 15. Bxd4 Bc5 16. a4 Bxd4 17. Nxd4 {1-0 Asadli,V (2579)-Anand,V (2751) Gashimov Memorial Rapid 7th 2021 (7.1)}) 11. cxd4 $14 {[%emt 0:02:07]} Nf5 {[%emt 0:03:08]} 12. Bxf5 {[%emt 0:33:52]} exf5 {[%emt 0:00:06]} 13. Nc3 {[%emt 0:00:08][%cal Bb1c3,Bc3a4,Ba4c5][%mdl 32]} Be6 {[%emt 0:00:16]} 14. Na4 {[%emt 0:01:22]} Qd8 {[%emt 0:00:11]} 15. Rc1 {[%emt 0:03:16]} h6 {[%emt 0:02:06]} 16. Qd2 {[%emt 0:03:31]} Be7 {[%emt 0:04:54]} 17. Nc5 {[%emt 0:02:55]} Qb6 {[%emt 0:01:52]} 18. Rc3 {[%emt 0:05:54]} (18. Bc3 $5) 18... O-O {[%emt 0:07:37]} 19. Rfc1 {[%emt 0:01:58]} Rc7 {[%emt 0:15:01]} 20. h4 {[%emt 0:12:30]} (20. Ne1 $14) 20... Rfc8 {[%emt 0:02:35]} 21. Qd3 {[%emt 0:01:42]} Nd8 {[%emt 0:06:01]} 22. Qd2 {[%emt 0:12:02] [#] Strongly threatening Na4.} Rc6 {[%emt 0:01:25] Black is weak on the dark squares} 23. h5 {[%emt 0:02:53]} Qb5 {[%emt 0:03:54]} 24. Rb3 {[%emt 0:04:19]} R6c7 {[%emt 0:04:29]} 25. a4 {[%emt 0:06:35]} Qe8 {[%emt 0:00:14]} 26. b5 {[%emt 0:00:36]} axb5 {[%emt 0:00:07]} 27. axb5 {[%emt 0:02:19]} Bxc5 {[%emt 0:02:24]} 28. dxc5 {[%emt 0:00:15]} Rxc5 {[%emt 0:00:02]} 29. Rxc5 {[%emt 0:00:35]} Rxc5 {[%emt 0:00:02]} 30. Nd4 {[%emt 0:00:18]} Qd7 $2 {[%emt 0:02:16][%mdl 8192]} (30... Rc8 $11 {and Black has nothing to worry.}) 31. Ba3 {[%emt 0:01:46]} (31. Rg3 $142 Kf8 32. Ba3) 31... Rc4 $18 {[%emt 0:00:05][%cal Of5f4]} 32. Rg3 {[%emt 0:00:18][%cal Od2h6][%mdl 1024] [#] White threatens Qxh6! and mate. White has strong compensation.} Kh7 {[%emt 0:00:26]} (32... f4 33. Qxf4 Rxd4 {[%mdl 64] Remove Defender} 34. Qxd4 Qxb5) 33. Bf8 {[%emt 0:00:11] Weighted Error Value: White=0.19 (very precise) /Black=0.39} 1-0